[Event "11th LCC Super Blitz 2019"]
[Site "London"]
[Date "2019.12.08"]
[Round "7.6"]
[White "Ozturan, Cem"]
[Black "Zulfic, Fedja"]
[Result "1-0"]
[ECO "B13"]
[WhiteElo "1853"]
[BlackElo "2032"]
[Annotator "NA"]
[PlyCount "95"]
[EventDate "2019.12.08"]
[EventType "swiss"]
[EventCountry "ENG"]
[SourceTitle "playchess.com"]
[Source "ChessBase"]
[SourceQuality "1"]
[TimeControl "180+2"]

1. d4 {[%emt 0:00:00]} d5 {[%emt 0:00:00]} 2. Nc3 {[%emt 0:00:02]} Nf6 {[%emt 0:00:01]} 3. Bf4 {[%emt 0:00:02]} c5 {[%emt 0:00:04]} 4. e3 {[%emt 0:00:02]} cxd4 {[%emt 0:00:07]} 5. exd4 {[%emt 0:00:02]} Bf5 {[%emt 0:00:13]} 6. Qd2 {[%emt 0:00:09]} e6 {[%emt 0:00:02]} 7. a3 {[%emt 0:00:01]} Be7 {[%emt 0:00:03]} 8. f3 {[%emt 0:00:06]} Nc6 {[%emt 0:00:03]} 9. g4 {[%emt 0:00:11]} Bg6 {[%emt 0:00:02]} 10. h4 {[%emt 0:00:01]} h5 {[%emt 0:00:09]} 11. g5 {[%emt 0:00:01]} Nd7 {[%emt 0:00:02]} 12. Bd3 {[%emt 0:00:31]} Bxd3 {[%emt 0:00:09]} 13. Qxd3 {[%emt 0:00:01]} g6 {[%emt 0:00:07]} 14. Nb5 {[%emt 0:00:09]} Rc8 {[%emt 0:00:02]} 15. Nd6+ {[%emt 0:00:01]} Bxd6 {[%emt 0:00:02]} 16. Bxd6 {[%emt 0:00:01]} Nb6 {[%emt 0:00:04]} 17. Bc5 {[%emt 0:00:18]} Na4 {[%emt 0:00:15]} 18. b3 {[%emt 0:00:13]} Nxc5 {[%emt 0:00:03]} 19. dxc5 {[%emt 0:00:00]} Qe7 {[%emt 0:00:17]} 20. b4 {[%emt 0:00:02]} a5 {[%emt 0:00:09]} 21. c3 {[%emt 0:00:02]} Qc7 {[%emt 0:00:07]} 22. Kf2 {[%emt 0:00:06]} Qf4 {[%emt 0:00:08]} 23. Ne2 {[%emt 0:00:07]} Qe5 {[%emt 0:00:01]} 24. Nd4 {[%emt 0:00:09]} axb4 {[%emt 0:00:17]} 25. axb4 {[%emt 0:00:01]} Nxd4 {[%emt 0:00:02]} 26. cxd4 {[%emt 0:00:01]} Qf4 {[%emt 0:00:01]} 27. Qe3 {[%emt 0:00:06]} Qc7 {[%emt 0:00:05]} 28. b5 {[%emt 0:00:13]} O-O {[%emt 0:00:02]} 29. b6 {[%emt 0:00:03]} Qc6 {[%emt 0:00:01]} 30. Ra7 {[%emt 0:00:06]} Rfe8 {[%emt 0:00:09]} 31. Qe5 {[%emt 0:00:21]} Ra8 {[%emt 0:00:12]} 32. Rha1 {[%emt 0:00:00]} Rac8 {[%emt 0:00:05]} 33. Kg3 {[%emt 0:00:06]} Red8 {[%emt 0:00:02]} 34. R1a5 {[%emt 0:00:05]} Re8 {[%emt 0:00:09]} 35. Qd6 {[%emt 0:00:04]} Qxd6+ {[%emt 0:00:06]} 36. cxd6 {[%emt 0:00:01]} Red8 {[%emt 0:00:00]} 37. Rxb7 {[%emt 0:00:01]} Rxd6 {[%emt 0:00:01]} 38. Raa7 {[%emt 0:00:01]} Rf8 {[%emt 0:00:14]} 39. Kf4 {[%emt 0:00:00]} Rc6 {[%emt 0:00:01]} 40. Ke5 {[%emt 0:00:01]} Kg7 {[%emt 0:00:04]} 41. Re7 {[%emt 0:00:02]} Rxb6 {[%emt 0:00:02]} 42. f4 {[%emt 0:00:03]} Kg8 {[%emt 0:00:02]} 43. Kf6 {[%emt 0:00:01]} Rb4 {[%emt 0:00:04]} 44. Rxf7 {[%emt 0:00:02]} Rxf7+ {[%emt 0:00:01]} 45. Rxf7 {[%emt 0:00:02]} Rxd4 {[%emt 0:00:01]} 46. Kxg6 {[%emt 0:00:05]} Rd3 {[%emt 0:00:06]} 47. Re7 {[%emt 0:00:06]} Re3 {[%emt 0:00:01]} 48. Re8# {[%emt 0:00:01]} 1-0

[Event "11th LCC Super Blitz 2019"]
[Site "London"]
[Date "2019.12.08"]
[Round "7.7"]
[White "Pappelis, Dimitrios"]
[Black "Brass, Ezra"]
[Result "0-1"]
[ECO "C00"]
[WhiteElo "2160"]
[BlackElo "1628"]
[Annotator "NA"]
[PlyCount "108"]
[EventDate "2019.12.08"]
[EventType "swiss"]
[EventCountry "ENG"]
[SourceTitle "playchess.com"]
[Source "ChessBase"]
[SourceQuality "1"]
[TimeControl "180+2"]

1. Nf3 {[%emt 0:00:00]} d5 {[%emt 0:00:00]} 2. g3 {[%emt 0:00:00]} c5 {[%emt 0:00:01]} 3. Bg2 {[%emt 0:00:01]} e6 {[%emt 0:00:00]} 4. O-O {[%emt 0:00:02]} Nf6 {[%emt 0:00:02]} 5. d3 {[%emt 0:00:02]} Nc6 {[%emt 0:00:01]} 6. Nbd2 {[%emt 0:00:00]} Be7 {[%emt 0:00:02]} 7. e4 {[%emt 0:00:02]} dxe4 {[%emt 0:00:01]} 8. dxe4 {[%emt 0:00:04]} O-O {[%emt 0:00:03]} 9. c3 {[%emt 0:00:03]} b6 {[%emt 0:00:05]} 10. Qc2 {[%emt 0:00:02]} Ba6 {[%emt 0:00:06]} 11. Re1 {[%emt 0:00:04]} Bd3 {[%emt 0:00:04]} 12. Qa4 {[%emt 0:00:14]} b5 {[%emt 0:00:02]} 13. Qd1 {[%emt 0:00:03]} c4 {[%emt 0:00:06]} 14. e5 {[%emt 0:00:10]} Nd5 {[%emt 0:00:18]} 15. Nf1 {[%emt 0:00:02]} Qb6 {[%emt 0:00:08]} 16. Ne3 {[%emt 0:00:03]} Rfd8 {[%emt 0:00:07]} 17. Nxd5 {[%emt 0:00:06]} Rxd5 {[%emt 0:00:06]} 18. Be3 {[%emt 0:00:14]} Bc5 {[%emt 0:00:10]} 19. Qc1 {[%emt 0:00:02]} Bxe3 {[%emt 0:00:08]} 20. Rxe3 {[%emt 0:00:05]} Rad8 {[%emt 0:00:11]} 21. Re1 {[%emt 0:00:03]} Qc7 {[%emt 0:00:25]} 22. Qf4 {[%emt 0:00:08]} b4 {[%emt 0:00:08]} 23. h4 {[%emt 0:00:12]} bxc3 24. bxc3 {[%emt 0:00:01]} Qa5 {[%emt 0:00:11]} 25. Ng5 {[%emt 0:00:17]} R8d7 {[%emt 0:00:15]} 26. Rab1 {[%emt 0:00:12]} h6 {[%emt 0:00:08]} 27. Bxd5 {[%emt 0:00:41]} Qxd5 {[%emt 0:00:08]} 28. Nf3 {[%emt 0:00:18]} Bxb1 {[%emt 0:00:04]} 29. Rxb1 Qd3 {[%emt 0:00:00]} 30. Rb5 {[%emt 0:00:31]} Qe2 {[%emt 0:00:12]} 31. Rb1 {[%emt 0:00:10]} Qxa2 {[%emt 0:00:03]} 32. Rf1 {[%emt 0:00:05]} Qb3 {[%emt 0:00:09]} 33. Qe4 {[%emt 0:00:01]} Rc7 {[%emt 0:00:10]} 34. Qe3 {[%emt 0:00:04]} Na5 {[%emt 0:00:08]} 35. Nd2 {[%emt 0:00:03]} Qc2 {[%emt 0:00:03]} 36. Ne4 {[%emt 0:00:02]} Nb3 {[%emt 0:00:05]} 37. Nd6 {[%emt 0:00:03]} Qd3 {[%emt 0:00:05]} 38. Qf4 {[%emt 0:00:03]} Qxc3 {[%emt 0:00:03]} 39. Rd1 {[%emt 0:00:00]} Qc2 {[%emt 0:00:04]} 40. Re1 {[%emt 0:00:04]} c3 {[%emt 0:00:05]} 41. Qf3 {[%emt 0:00:02]} Nd4 {[%emt 0:00:05]} 42. Qa8+ {[%emt 0:00:01]} Kh7 {[%emt 0:00:02]} 43. Qe8 {[%emt 0:00:03]} Nf3+ {[%emt 0:00:03]} 44. Kf1 {[%emt 0:00:02]} Qd3+ {[%emt 0:00:03]} 45. Re2 {[%emt 0:00:02]} Qd1+ {[%emt 0:00:02]} 46. Kg2 {[%emt 0:00:01]} Qxe2 {[%emt 0:00:01]} 47. Nxf7 {[%emt 0:00:02]} Nxe5 {[%emt 0:00:07]} 48. Qh8+ {[%emt 0:00:01]} Kg6 {[%emt 0:00:01]} 49. h5+ {[%emt 0:00:01]} Kxh5 {[%emt 0:00:02]} 50. Qxg7 {[%emt 0:00:01]} Qe4+ {[%emt 0:00:02]} 51. Kh2 {[%emt 0:00:01]} Ng4+ {[%emt 0:00:02]} 52. Kg1 {[%emt 0:00:02]} Qe1+ {[%emt 0:00:02]} 53. Kg2 {[%emt 0:00:02]} Qxf2+ {[%emt 0:00:02]} 54. Kh1 {[%emt 0:00:02]} Qf1# {[%emt 0:00:02]} 0-1

[Event "11th LCC Super Blitz 2019"]
[Site "London"]
[Date "2019.12.08"]
[Round "7.7"]
[White "Balaji, Aaravamudhan"]
[Black "Zhao, Haolin"]
[Result "1-0"]
[ECO "D00"]
[WhiteElo "2120"]
[BlackElo "1725"]
[Annotator "NA"]
[PlyCount "73"]
[EventDate "2019.12.08"]
[EventType "swiss"]
[EventCountry "ENG"]
[SourceTitle "playchess.com"]
[Source "ChessBase"]
[SourceQuality "1"]
[TimeControl "180+2"]

1. d4 {[%emt 0:00:00]} d5 {[%emt 0:00:00]} 2. Nc3 {[%emt 0:00:01]} Nf6 {[%emt 0:00:05]} 3. Bf4 {[%emt 0:00:02]} c6 {[%emt 0:00:06]} 4. e3 {[%emt 0:00:02]} Bf5 {[%emt 0:00:02]} 5. Nf3 {[%emt 0:00:01]} e6 {[%emt 0:00:01]} 6. Ne5 {[%emt 0:00:02]} Nbd7 {[%emt 0:00:02]} 7. g4 {[%emt 0:00:01]} Bg6 {[%emt 0:00:15]} 8. h4 {[%emt 0:00:01]} Bb4 {[%emt 0:00:01]} 9. h5 {[%emt 0:00:06]} Be4 {[%emt 0:00:35]} 10. f3 {[%emt 0:00:02]} Qa5 {[%emt 0:00:04]} 11. fxe4 {[%emt 0:00:28]} Nxe5 {[%emt 0:00:06]} 12. Bxe5 {[%emt 0:00:10]} Nxe4 {[%emt 0:00:01]} 13. Rc1 {[%emt 0:00:19]} f6 {[%emt 0:00:16]} 14. Bh2 {[%emt 0:00:17]} Bxc3+ {[%emt 0:00:23]} 15. bxc3 {[%emt 0:00:01]} Qxc3+ {[%emt 0:00:01]} 16. Ke2 {[%emt 0:00:07]} Qc4+ {[%emt 0:00:07]} 17. Qd3 {[%emt 0:00:10]} Qxa2 {[%emt 0:00:02]} 18. Bg2 {[%emt 0:00:06]} f5 {[%emt 0:00:43]} 19. gxf5 {[%emt 0:00:06]} exf5 {[%emt 0:00:01]} 20. Qb3 {[%emt 0:00:05]} Qxb3 {[%emt 0:00:04]} 21. cxb3 {[%emt 0:00:01]} O-O {[%emt 0:00:02]} 22. Be5 {[%emt 0:00:05]} a6 {[%emt 0:00:12]} 23. Rhg1 {[%emt 0:00:06]} Nf6 {[%emt 0:00:04]} 24. h6 {[%emt 0:00:08]} g6 {[%emt 0:00:04]} 25. Bh3 {[%emt 0:00:13]} Kf7 {[%emt 0:00:04]} 26. Ra1 {[%emt 0:00:18]} Ne4 {[%emt 0:00:01]} 27. Bg2 {[%emt 0:00:08]} Rfe8 {[%emt 0:00:03]} 28. Bxe4 {[%emt 0:00:03]} dxe4 {[%emt 0:00:01]} 29. Ra5 {[%emt 0:00:04]} Rad8 {[%emt 0:00:04]} 30. Ra4 {[%emt 0:00:05]} Rd5 {[%emt 0:00:03]} 31. Rb4 {[%emt 0:00:05]} Re7 {[%emt 0:00:04]} 32. Rc1 {[%emt 0:00:03]} c5 {[%emt 0:00:07]} 33. Rb6 {[%emt 0:00:03]} cxd4 {[%emt 0:00:05]} 34. Bxd4 {[%emt 0:00:02]} Ke8 {[%emt 0:00:04]} 35. Rc8+ {[%emt 0:00:06]} Rd8 {[%emt 0:00:05]} 36. Rxd8+ {[%emt 0:00:02]} Kxd8 {[%emt 0:00:00]} 37. Bf6 {[%emt 0:00:01]} 1-0

[Event "11th LCC Super Blitz 2019"]
[Site "London"]
[Date "2019.12.08"]
[Round "7.8"]
[White "Bird, Joel"]
[Black "Van Hoof, Alexander"]
[Result "1-0"]
[ECO "B15"]
[WhiteElo "2009"]
[BlackElo "1968"]
[Annotator "NA"]
[PlyCount "53"]
[EventDate "2019.12.08"]
[EventType "swiss"]
[EventCountry "ENG"]
[SourceTitle "playchess.com"]
[Source "ChessBase"]
[SourceQuality "1"]
[TimeControl "180+2"]

1. e4 {[%emt 0:00:00]} c6 {[%emt 0:00:00]} 2. d4 {[%emt 0:00:01]} d5 {[%emt 0:00:00]} 3. Nc3 {[%emt 0:00:01]} dxe4 {[%emt 0:00:00]} 4. Nxe4 {[%emt 0:00:01]} Nf6 {[%emt 0:00:01]} 5. Nxf6+ {[%emt 0:00:03]} exf6 {[%emt 0:00:01]} 6. c3 {[%emt 0:00:01]} Be7 {[%emt 0:00:01]} 7. Bd3 {[%emt 0:00:09]} Be6 {[%emt 0:00:01]} 8. Bf4 {[%emt 0:00:02]} Nd7 {[%emt 0:00:02]} 9. Qd2 {[%emt 0:00:16]} Nb6 {[%emt 0:00:05]} 10. Ne2 {[%emt 0:00:13]} Nd5 {[%emt 0:00:03]} 11. Bg3 {[%emt 0:00:09]} h5 {[%emt 0:00:05]} 12. Nf4 {[%emt 0:00:09]} Nxf4 {[%emt 0:00:55]} 13. Bxf4 {[%emt 0:00:09]} g5 {[%emt 0:00:17]} 14. Be3 {[%emt 0:00:06]} f5 {[%emt 0:00:04]} 15. f4 {[%emt 0:00:08]} g4 {[%emt 0:00:04]} 16. O-O {[%emt 0:00:15]} h4 {[%emt 0:00:22]} 17. Rfe1 {[%emt 0:00:02]} Qc7 {[%emt 0:00:04]} 18. Qc2 {[%emt 0:00:10]} Qd7 {[%emt 0:00:12]} 19. a4 {[%emt 0:00:22]} Rc8 {[%emt 0:00:13]} 20. Rad1 {[%emt 0:00:13]} Kf8 {[%emt 0:00:06]} 21. Kh1 {[%emt 0:00:10]} h3 {[%emt 0:00:02]} 22. g3 {[%emt 0:00:05]} Qd5+ {[%emt 0:00:06]} 23. Kg1 {[%emt 0:00:07]} c5 {[%emt 0:00:09]} 24. c4 {[%emt 0:00:13]} cxd4 {[%emt 0:00:13]} 25. cxd5 {[%emt 0:00:05]} Rxc2 {[%emt 0:00:01]} 26. Bxc2 {[%emt 0:00:08]} dxe3 {[%emt 0:00:04]} 27. dxe6 {[%emt 0:00:01]} 1-0

[Event "11th LCC Super Blitz 2019"]
[Site "London"]
[Date "2019.12.08"]
[Round "7.8"]
[White "Sheikh, Anum"]
[Black "Rahman, Asad"]
[Result "0-1"]
[ECO "A25"]
[WhiteElo "1560"]
[BlackElo "1923"]
[Annotator "NA"]
[PlyCount "75"]
[EventDate "2019.12.08"]
[EventType "swiss"]
[EventCountry "ENG"]
[SourceTitle "playchess.com"]
[Source "ChessBase"]
[SourceQuality "1"]
[TimeControl "180+2"]

1. c4 {[%emt 0:00:00]} e5 {[%emt 0:00:00]} 2. g3 {[%emt 0:00:00]} Nc6 {[%emt 0:00:01]} 3. Bg2 {[%emt 0:00:01]} Bc5 {[%emt 0:00:01]} 4. e3 {[%emt 0:00:02]} d6 {[%emt 0:00:02]} 5. Nc3 {[%emt 0:00:01]} f5 {[%emt 0:00:02]} 6. Nge2 {[%emt 0:00:01]} a6 {[%emt 0:00:01]} 7. O-O {[%emt 0:00:03]} Nf6 {[%emt 0:00:01]} 8. d4 {[%emt 0:00:02]} Ba7 {[%emt 0:00:02]} 9. Nd5 {[%emt 0:00:05]} O-O {[%emt 0:00:03]} 10. a3 {[%emt 0:00:03]} Bd7 {[%emt 0:00:08]} 11. b4 {[%emt 0:00:02]} Nxd5 {[%emt 0:00:07]} 12. cxd5 {[%emt 0:00:13]} Ne7 {[%emt 0:00:03]} 13. dxe5 {[%emt 0:00:01]} dxe5 {[%emt 0:00:03]} 14. d6 {[%emt 0:00:14]} Nc6 {[%emt 0:00:02]} 15. dxc7 {[%emt 0:00:06]} Qxc7 {[%emt 0:00:01]} 16. Bb2 {[%emt 0:00:02]} Rad8 {[%emt 0:00:03]} 17. Qb3+ {[%emt 0:00:04]} Kh8 {[%emt 0:00:03]} 18. Rac1 {[%emt 0:00:05]} Qb8 {[%emt 0:00:40]} 19. Rfd1 {[%emt 0:00:14]} f4 {[%emt 0:00:21]} 20. exf4 {[%emt 0:00:03]} Bg4 {[%emt 0:00:13]} 21. Rxd8 {[%emt 0:00:04]} Rxd8 {[%emt 0:00:03]} 22. Nc3 {[%emt 0:00:26]} exf4 {[%emt 0:00:01]} 23. Ne4 {[%emt 0:00:03]} Nd4 {[%emt 0:00:15]} 24. Bxd4 {[%emt 0:00:38]} Bxd4 {[%emt 0:00:11]} 25. Bf3 {[%emt 0:00:35]} Bf5 {[%emt 0:00:23]} 26. Bg2 {[%emt 0:00:09]} fxg3 {[%emt 0:00:03]} 27. hxg3 {[%emt 0:00:09]} Qa7 {[%emt 0:00:08]} 28. Nc5 {[%emt 0:00:07]} h6 {[%emt 0:00:14]} 29. Qf7 {[%emt 0:00:09]} Bh7 {[%emt 0:00:11]} 30. Ne6 {[%emt 0:00:07]} Rg8 {[%emt 0:00:06]} 31. Rc8 {[%emt 0:00:07]} Bxf2+ {[%emt 0:00:05]} 32. Kh1 {[%emt 0:00:01]} Bd4 {[%emt 0:00:03]} 33. Rxg8+ {[%emt 0:00:03]} Bxg8 {[%emt 0:00:01]} 34. Qf5 {[%emt 0:00:03]} Bf6 {[%emt 0:00:06]} 35. Be4 {[%emt 0:00:04]} Qe3 {[%emt 0:00:02]} 36. Nf8 {[%emt 0:00:05]} Qe1+ {[%emt 0:00:10]} 37. Kh2 Qd2+ {[%emt 0:00:00]} 38. Kh1 {[%emt 0:00:04]} 0-1

[Event "11th LCC Super Blitz 2019"]
[Site "London"]
[Date "2019.12.08"]
[Round "7.9"]
[White "Onslow, Teddy"]
[Black "Davis, Holden"]
[Result "0-1"]
[ECO "B50"]
[WhiteElo "1647"]
[BlackElo "1769"]
[Annotator "NA"]
[PlyCount "143"]
[EventDate "2019.12.08"]
[EventType "swiss"]
[EventCountry "ENG"]
[SourceTitle "playchess.com"]
[Source "ChessBase"]
[SourceQuality "1"]
[TimeControl "180+2"]

1. e4 {[%emt 0:01:05]} c5 {[%emt 0:00:01]} 2. Nf3 {[%emt 0:00:02]} d6 3. c3 Nf6 4. h3 {[%emt 0:00:02]} Nc6 {[%emt 0:00:03]} 5. Bd3 {[%emt 0:00:04]} e6 {[%emt 0:00:04]} 6. Bc2 {[%emt 0:00:01]} Be7 {[%emt 0:00:12]} 7. d4 {[%emt 0:00:01]} cxd4 {[%emt 0:00:02]} 8. cxd4 Nb4 {[%emt 0:00:25]} 9. Ba4+ {[%emt 0:00:08]} Bd7 {[%emt 0:00:03]} 10. Bxd7+ {[%emt 0:00:13]} Qxd7 11. Nc3 {[%emt 0:00:08]} O-O {[%emt 0:00:11]} 12. a3 Nc6 {[%emt 0:00:04]} 13. O-O {[%emt 0:00:04]} a6 {[%emt 0:00:04]} 14. Bf4 {[%emt 0:00:04]} Rac8 {[%emt 0:00:03]} 15. Rc1 {[%emt 0:00:07]} b5 {[%emt 0:00:08]} 16. b4 {[%emt 0:00:01]} Rfd8 {[%emt 0:00:09]} 17. d5 {[%emt 0:00:35]} Na7 {[%emt 0:00:38]} 18. dxe6 {[%emt 0:00:06]} fxe6 {[%emt 0:00:02]} 19. e5 {[%emt 0:00:08]} Ne8 {[%emt 0:00:25]} 20. exd6 {[%emt 0:00:05]} Bxd6 {[%emt 0:00:08]} 21. Bxd6 {[%emt 0:00:05]} Qxd6 {[%emt 0:00:12]} 22. Qxd6 {[%emt 0:00:02]} Nxd6 23. Rfe1 {[%emt 0:00:03]} Re8 {[%emt 0:00:22]} 24. Ne5 {[%emt 0:00:13]} Nc6 {[%emt 0:00:08]} 25. Nxc6 {[%emt 0:00:04]} Rxc6 26. Nb1 {[%emt 0:00:22]} Nc4 27. Nd2 {[%emt 0:00:15]} Rec8 {[%emt 0:00:06]} 28. Nxc4 bxc4 {[%emt 0:00:02]} 29. Re3 {[%emt 0:00:03]} Kf7 {[%emt 0:00:02]} 30. Rec3 {[%emt 0:00:02]} e5 {[%emt 0:00:04]} 31. Kf1 Kf6 {[%emt 0:00:03]} 32. Ke2 {[%emt 0:00:02]} a5 {[%emt 0:00:03]} 33. b5 {[%emt 0:00:06]} Rc5 {[%emt 0:00:04]} 34. a4 {[%emt 0:00:02]} g5 {[%emt 0:00:02]} 35. g4 {[%emt 0:00:01]} h5 {[%emt 0:00:04]} 36. f3 hxg4 {[%emt 0:00:01]} 37. hxg4 Ke6 {[%emt 0:00:03]} 38. Ke3 Kf6 39. Rd1 {[%emt 0:00:13]} Ke6 {[%emt 0:00:02]} 40. Ke4 {[%emt 0:00:02]} Rf8 {[%emt 0:00:02]} 41. Rdc1 {[%emt 0:00:06]} Rfc8 42. Rh1 {[%emt 0:00:01]} Rf8 {[%emt 0:00:02]} 43. Rh6+ {[%emt 0:00:02]} Rf6 44. Rh5 {[%emt 0:00:04]} Rg6 45. Rh1 {[%emt 0:00:06]} Rg8 {[%emt 0:00:02]} 46. Rhc1 {[%emt 0:00:04]} Rgc8 47. Re3 {[%emt 0:00:04]} Rd5 {[%emt 0:00:03]} 48. Rec3 {[%emt 0:00:21]} Rd4+ 49. Ke3 Kd5 50. R3c2 {[%emt 0:00:08]} Kc5 51. Rb1 {[%emt 0:00:07]} Rf8 {[%emt 0:00:07]} 52. Kf2 {[%emt 0:00:02]} Rd3 {[%emt 0:00:02]} 53. b6 {[%emt 0:00:04]} Rdxf3+ {[%emt 0:00:03]} 54. Kg2 R3f7 {[%emt 0:00:05]} 55. b7 {[%emt 0:00:04]} Rb8 56. Rbc1 {[%emt 0:00:02]} Rfxb7 {[%emt 0:00:04]} 57. Rxc4+ {[%emt 0:00:01]} Kd6 58. Rc6+ {[%emt 0:00:02]} Kd7 {[%emt 0:00:03]} 59. R1c2 {[%emt 0:00:02]} Rb2 {[%emt 0:00:01]} 60. Kf3 Rxc2 {[%emt 0:00:02]} 61. Rxc2 {[%emt 0:00:02]} Rb3+ {[%emt 0:00:02]} 62. Kg2 Rb4 {[%emt 0:00:01]} 63. Rc5 {[%emt 0:00:02]} Rxg4+ {[%emt 0:00:02]} 64. Kf3 {[%emt 0:00:01]} Rxa4 {[%emt 0:00:02]} 65. Rxe5 {[%emt 0:00:01]} g4+ {[%emt 0:00:02]} 66. Kg3 Kd6 {[%emt 0:00:01]} 67. Rg5 {[%emt 0:00:01]} Ra3+ {[%emt 0:00:07]} 68. Kxg4 {[%emt 0:00:02]} Kc6 69. Rf5 {[%emt 0:00:05]} Kb6 {[%emt 0:00:02]} 70. Kf4 {[%emt 0:00:02]} Rd3 {[%emt 0:00:01]} 71. Ke4 Rd8 {[%emt 0:00:01]} 72. Ke5 {[%emt 0:00:16]} 0-1

[Event "11th LCC Super Blitz 2019"]
[Site "London"]
[Date "2019.12.08"]
[Round "7.10"]
[White "Joslin, Tim"]
[Black "Bergner, Matthias"]
[Result "1-0"]
[ECO "C11"]
[WhiteElo "1822"]
[BlackElo "1632"]
[Annotator "NA"]
[PlyCount "27"]
[EventDate "2019.12.08"]
[EventType "swiss"]
[EventCountry "ENG"]
[SourceTitle "playchess.com"]
[Source "ChessBase"]
[SourceQuality "1"]
[TimeControl "180+2"]

1. e4 {[%emt 0:00:00]} e6 {[%emt 0:00:00]} 2. Nf3 {[%emt 0:00:01]} d5 {[%emt 0:00:00]} 3. Nc3 {[%emt 0:00:01]} Nf6 {[%emt 0:00:07]} 4. e5 {[%emt 0:00:01]} Nfd7 {[%emt 0:00:01]} 5. d4 {[%emt 0:00:01]} c5 {[%emt 0:00:01]} 6. dxc5 {[%emt 0:00:04]} Bxc5 {[%emt 0:00:06]} 7. Bd3 {[%emt 0:00:05]} Nc6 {[%emt 0:00:07]} 8. Bf4 {[%emt 0:00:02]} Qc7 {[%emt 0:00:07]} 9. O-O {[%emt 0:00:04]} O-O {[%emt 0:00:11]} 10. Bxh7+ {[%emt 0:00:05]} Kxh7 {[%emt 0:00:15]} 11. Ng5+ {[%emt 0:00:00]} Kg6 {[%emt 0:00:03]} 12. Qg4 {[%emt 0:00:39]} Ncxe5 {[%emt 0:00:10]} 13. Qg3 {[%emt 0:00:13]} Qd6 {[%emt 0:00:31]} 14. Nge4+ {[%emt 0:00:12]} 1-0

[Event "11th LCC Super Blitz 2019"]
[Site "London"]
[Date "2019.12.08"]
[Round "7.10"]
[White "Watson, Mikey J"]
[Black "Vaidya, Raghav"]
[Result "0-1"]
[ECO "A03"]
[WhiteElo "1748"]
[BlackElo "1467"]
[Annotator "NA"]
[PlyCount "89"]
[EventDate "2019.12.08"]
[EventType "swiss"]
[EventCountry "ENG"]
[SourceTitle "playchess.com"]
[Source "ChessBase"]
[SourceQuality "1"]
[TimeControl "180+2"]

1. b3 {[%emt 0:00:00]} d5 {[%emt 0:00:00]} 2. Bb2 {[%emt 0:00:00]} c5 {[%emt 0:00:02]} 3. e3 {[%emt 0:00:00]} Nc6 {[%emt 0:00:00]} 4. Bb5 {[%emt 0:00:01]} Qc7 {[%emt 0:00:02]} 5. Nf3 {[%emt 0:00:01]} Nf6 {[%emt 0:00:02]} 6. O-O {[%emt 0:00:20]} g6 {[%emt 0:00:07]} 7. Ne5 {[%emt 0:00:11]} Bg7 {[%emt 0:00:03]} 8. Bxc6+ {[%emt 0:00:03]} bxc6 {[%emt 0:00:04]} 9. f4 {[%emt 0:00:11]} O-O {[%emt 0:00:00]} 10. d3 {[%emt 0:00:07]} Nd7 {[%emt 0:00:34]} 11. d4 {[%emt 0:00:20]} f6 {[%emt 0:00:14]} 12. Nxd7 {[%emt 0:00:29]} Bxd7 {[%emt 0:00:01]} 13. dxc5 {[%emt 0:00:01]} e5 {[%emt 0:00:01]} 14. Nd2 {[%emt 0:00:16]} Rad8 {[%emt 0:00:16]} 15. Qe2 {[%emt 0:00:17]} Bf5 {[%emt 0:00:11]} 16. c4 {[%emt 0:00:10]} Rfe8 {[%emt 0:00:21]} 17. cxd5 {[%emt 0:00:01]} cxd5 {[%emt 0:00:01]} 18. b4 {[%emt 0:00:03]} h5 {[%emt 0:00:16]} 19. fxe5 {[%emt 0:00:07]} fxe5 {[%emt 0:00:02]} 20. Nf3 {[%emt 0:00:08]} d4 {[%emt 0:00:07]} 21. exd4 {[%emt 0:00:12]} exd4 {[%emt 0:00:00]} 22. Qc4+ {[%emt 0:00:04]} Be6 {[%emt 0:00:02]} 23. Qa6 {[%emt 0:00:04]} d3 {[%emt 0:00:02]} 24. Bxg7 {[%emt 0:00:06]} Kxg7 {[%emt 0:00:01]} 25. Ng5 {[%emt 0:00:04]} Bf5 {[%emt 0:00:03]} 26. Rxf5 {[%emt 0:00:10]} gxf5 {[%emt 0:00:01]} 27. Ne6+ {[%emt 0:00:00]} Rxe6 {[%emt 0:00:03]} 28. Qxe6 {[%emt 0:00:01]} d2 {[%emt 0:00:00]} 29. Rd1 {[%emt 0:00:06]} Rd3 {[%emt 0:00:17]} 30. Qxf5 {[%emt 0:00:02]} Qd8 {[%emt 0:00:01]} 31. Qe5+ {[%emt 0:00:02]} Kg8 {[%emt 0:00:01]} 32. Qe6+ {[%emt 0:00:01]} Kg7 {[%emt 0:00:01]} 33. Qe5+ {[%emt 0:00:01]} Kg8 {[%emt 0:00:01]} 34. Qxh5 {[%emt 0:00:06]} Qd4+ {[%emt 0:00:01]} 35. Kh1 {[%emt 0:00:03]} Re3 {[%emt 0:00:08]} 36. Qg5+ {[%emt 0:00:05]} Kf7 {[%emt 0:00:04]} 37. Qf5+ {[%emt 0:00:03]} Ke7 {[%emt 0:00:01]} 38. Qg5+ {[%emt 0:00:04]} Kd7 {[%emt 0:00:01]} 39. Qf5+ {[%emt 0:00:04]} Kc6 {[%emt 0:00:08]} 40. Qc8+ {[%emt 0:00:02]} Kb5 {[%emt 0:00:06]} 41. Qb7+ {[%emt 0:00:02]} Kc4 {[%emt 0:00:01]} 42. Qa6+ {[%emt 0:00:02]} Kc3 {[%emt 0:00:28]} 43. Qf1 {[%emt 0:00:12]} Qd3 {[%emt 0:00:12]} 44. Qf6+ {[%emt 0:00:03]} Kc2 {[%emt 0:00:01]} 45. Qa1 {[%emt 0:00:03]} 0-1